bitfinex-derivatives/quotes_SOLF0:USTF0_20250320
["timestamp","ask_amount","ask_price","bid_price","bid_amount"]
[1742513015821,27.58988423,127.93,127.9,7.87634446]
[1742513016420,35.41138423,127.93,127.9,7.87634446]
[1742513017521,7.8219,127.92,127.9,0.05324446]
[1742513018726,27.58988423,127.93,127.9,0.05324446]
[1742513019331,27.58988423,127.93,127.85,258.2]
[1742513019518,27.54,127.93,127.85,258.2]
[1742513019717,7.8252,127.87,127.85,258.2]
[1742513020323,7.8252,127.87,127.85,266.0259]
[1742513020522,7.8800698,127.87,127.85,266.08071175]
[1742513021529,0.0548698,127.87,127.85,266.08071175]
[1742513021728,0.0548698,127.87,127.86,7.8255]
[1742513027232,7.8797698,127.87,127.85,266.08061175]
[1742513027424,0.0548698,127.87,127.85,258.25481175]
[1742513027731,7.8799698,127.87,127.85,266.08061175]
[1742513030533,7.8255,127.86,127.85,258.25481175]
[1742513030733,0.0548698,127.87,127.85,258.25481175]
[1742513030925,0.0548698,127.87,127.86,7.8255]
[1742513032534,0.0548698,127.87,127.85,266.08071175]
[1742513033335,7.8800698,127.87,127.85,266.08071175]
[1742513035235,7.8255,127.86,127.85,258.25481175]
[1742513036234,7.8800698,127.87,127.85,269.67670114]
[1742513036532,0.0548698,127.87,127.85,269.67670114]
[1742513036837,7.8255,127.86,127.85,258.25481175]
[1742513037639,7.8801698,127.87,127.85,258.25481175]
[1742513037843,7.8801698,127.87,127.85,277.50270114]
[1742513038233,7.8255,127.86,127.85,269.67670114]
[1742513039641,7.8255,127.86,127.85,277.50290114]
[1742513040841,7.8801698,127.87,127.85,277.50290114]
[1742513041448,7.8255,127.86,127.85,277.50290114]
[1742513041736,7.8255,127.86,127.85,19.30290114]
[1742513042041,7.8255,127.86,127.85,11.47670114]
[1742513048145,35.3655,127.86,127.85,0.05481175]
[1742513048349,35.3655,127.86,127.82,11.42188939]
[1742513048350,27.54,127.86,127.82,11.42188939]
[1742513048940,38.96188939,127.86,127.81,11.42188939]
[1742513049547,11.47923092,127.85,127.82,0.0587212]
[1742513049748,38.96188939,127.84,127.79,11.42188939]
[1742513049957,35.3674,127.83,127.82,0.05105492]
[1742513050145,29.51,127.83,127.79,11.42188939]
[1742513050755,40.93188939,127.83,127.78,11.42188939]
[1742513051250,7.8304,127.79,127.78,11.42188939]
[1742513051453,27.54,127.81,127.79,0.05246311]
[1742513051646,27.54,127.81,127.79,11.4743525]
[1742513052046,35.3687,127.81,127.79,11.4743525]
[1742513052246,27.54,127.81,127.8,11.42188939]
[1742513052554,0.05774347,127.82,127.8,11.42188939]
[1742513052850,0.05774347,127.82,127.81,11.42188939]
[1742513053445,0.05774347,127.82,127.81,19.25048939]
[1742513055146,45.69565972,127.88,127.81,38.96188939]
[1742513055456,27.54,127.87,127.85,11.42188939]
[1742513056358,27.59584646,127.87,127.85,11.47999514]
[1742513056559,27.59584646,127.87,127.85,19.30579514]
[1742513057761,27.59584646,127.87,127.86,7.8255]
[1742513058354,27.59584646,127.87,127.86,19.24738939]
[1742513059560,0.05584646,127.87,127.86,19.24738939]
[1742513061267,0.05584646,127.87,127.86,11.42188939]
[1742513061967,0.05584646,127.87,127.86,19.24738939]
[1742513063366,0.05584646,127.87,127.85,11.47999514]
[1742513063568,0.05584646,127.87,127.86,11.42188939]
[1742513063767,0.05584646,127.87,127.86,19.24738939]
[1742513076879,35.3627,127.91,127.89,7.8233]
[1742513077079,27.54,127.91,127.89,19.24518939]
[1742513077881,0.05168623,127.91,127.89,19.3005167]
[1742513079385,7.87418623,127.91,127.89,19.3005167]
[1742513080577,7.8231,127.9,127.89,11.4772167]
[1742513081189,7.8231,127.9,127.89,0.05532731]
[1742513089890,7.8231,127.9,127.89,7.87902731]
[1742513090189,7.87448623,127.91,127.89,7.87902731]
[1742513092485,0.05168623,127.91,127.9,19.24498939]
[1742513092692,38.42216493,127.95,127.9,11.42188939]
[1742513092990,38.42216493,127.95,127.92,11.42188939]
[1742513093183,71.06865972,127.95,127.92,19.24368939]
[1742513093388,71.06865972,127.95,127.92,11.42188939]
[1742513093788,71.11886423,127.95,127.92,11.47569145]
[1742513094286,7.8208,127.94,127.92,11.47569145]
[1742513094889,78.93926423,127.95,127.92,11.47569145]
[1742513095286,78.93926423,127.95,127.92,19.29749145]
[1742513095792,35.41060451,127.95,127.92,19.29749145]
[1742513096288,7.8207,127.94,127.92,19.29749145]
[1742513097986,35.41060451,127.95,127.93,7.8213]
[1742513098187,27.59020451,127.95,127.92,11.47569145]
[1742513098588,7.8206,127.94,127.92,19.29719145]
[1742513098887,27.59020451,127.95,127.92,11.47569145]
[1742513099291,35.41050451,127.95,127.92,19.29699145]
[1742513099791,7.8209,127.94,127.92,19.29699145]
[1742513100290,7.8213,127.93,127.92,11.47569145]
[1742513100995,7.821,127.94,127.92,19.29759145]
[1742513101899,7.821,127.94,127.92,11.47569145]
[1742513102093,7.8213,127.93,127.92,11.47569145]
[1742513104187,35.3413,127.93,127.92,0.05380206]
[1742513104386,38.94188939,127.93,127.85,2.0333]
[1742513104595,11.42188939,127.92,127.87,11.42188939]
[1742513104900,27.52,127.91,127.87,19.24658939]
[1742513105093,7.824,127.89,127.87,19.24658939]
[1742513105494,7.87657212,127.89,127.87,19.30010068]
[1742513108306,7.8243,127.88,127.87,11.47540068]
[1742513108605,0.05257212,127.89,127.87,11.47540068]
[1742513109709,7.87667212,127.89,127.87,19.30030068]
[1742513111006,7.8243,127.88,127.87,0.05351129]
[1742513113710,35.39657212,127.89,127.87,0.05351129]
[1742513114403,27.57257212,127.89,127.87,11.47540068]
[1742513114806,0.05257212,127.89,127.88,11.42188939]
[1742513115506,0.05257212,127.89,127.88,19.24618939]
[1742513129835,35.3416,127.93,127.91,7.8223]
[1742513130021,35.3416,127.93,127.91,19.24418939]
[1742513131235,35.39373029,127.93,127.91,19.29687938]
[1742513131424,7.8219,127.92,127.91,0.05268999]
[1742513134936,7.8237,127.89,127.88,11.42188939]
[1742513135336,27.52,127.91,127.88,11.42188939]
[1742513135526,7.8235,127.9,127.89,11.42188939]
[1742513136937,35.39604682,127.91,127.89,19.24558939]
[1742513137139,27.57324682,127.91,127.89,11.42188939]
[1742513137838,7.8231,127.9,127.89,11.42188939]
[1742513139946,7.8237,127.89,127.88,11.47859329]
[1742513140338,7.8237,127.89,127.88,0.0567039]
[1742513141644,7.8234,127.9,127.88,11.47859329]
[1742513142043,7.8234,127.9,127.88,19.30289329]
[1742513143142,27.57324682,127.91,127.89,11.42188939]
[1742513143741,27.57324682,127.91,127.89,19.24518939]
[1742513144244,27.57324682,127.91,127.9,7.8231]
[1742513145259,27.57324682,127.91,127.89,19.24528939]
[1742513145747,27.57324682,127.91,127.9,7.8231]
[1742513146347,27.57324682,127.91,127.89,19.24528939]
[1742513146545,27.57324682,127.91,127.89,11.42188939]
[1742513146743,0.05324682,127.91,127.89,11.42188939]
[1742513147249,0.05324682,127.91,127.9,19.24498939]
[1742513158359,0.05324682,127.91,127.9,46.76498939]
[1742513158656,27.52,127.94,127.92,7.8215]
[1742513158850,35.3407,127.94,127.93,11.42188939]
[1742513159850,7.87841769,127.95,127.93,19.24318939]
[1742513160163,0.05801769,127.95,127.94,11.42188939]
[1742513161165,0.05801769,127.95,127.94,19.24248939]
[1742513161751,10.8713823,127.98,127.97,7.8188]
[1742513161950,18.6895823,127.98,127.97,11.42188939]
[1742513162257,18.6895823,127.98,127.96,11.42188939]
[1742513162963,18.74740492,127.98,127.96,11.47357642]
[1742513163168,7.8188,127.97,127.96,11.47357642]
[1742513175169,7.87632262,127.98,127.96,11.47357642]
[1742513175472,7.87632262,127.98,127.97,11.42188939]
[1742513177275,7.87632262,127.98,127.96,0.05168703]
[1742513177276,7.8188,127.97,127.96,11.47357642]
[1742513179674,7.87622262,127.98,127.96,11.47357642]
[1742513181179,7.87622262,127.98,127.96,19.29297642]
[1742513181372,7.87622262,127.98,127.96,11.47357642]
[1742513181572,7.8188,127.97,127.96,11.47357642]
[1742513182677,7.87632262,127.98,127.96,11.47357642]
[1742513183073,7.87632262,127.98,127.96,19.29267642]
[1742513183378,0.05782262,127.98,127.97,11.42188939]
[1742513183578,0.05782262,127.98,127.97,19.24068939]
[1742513199886,2.061,128.03,128.01,11.42188939]
[1742513200081,73.01452921,128.04,128.02,11.42188939]
[1742513200282,45.51452921,128.04,128.03,11.42188939]
[1742513200488,43.48552921,128.04,128.03,11.42188939]
[1742513200780,43.48552921,128.04,128.03,19.23698939]
[1742513203189,0.0403736,128.05,128.04,7.8145]
[1742513203398,0.0403736,128.05,128.04,19.23638939]
[1742513212196,16.6773547,128.06,128.05,7.8139]
[1742513215202,16.6773547,128.06,128.05,19.23578939]
[1742513216094,16.6773547,128.06,128.05,11.42188939]
[1742513216601,16.6773547,128.06,128.05,19.23578939]
[1742513223411,16.6773547,128.06,128.05,11.42188939]
[1742513224508,16.6773547,128.06,128.05,19.23578939]
[1742513224907,24.4906547,128.06,128.04,38.90188939]
[1742513225215,24.4906547,128.06,128.04,11.42188939]
[1742513225513,24.4906547,128.06,128.02,11.47150964]
[1742513225514,16.6773547,128.06,128.02,11.47150964]
[1742513225710,29.5218,128.05,128.02,0.04962025]
[1742513225909,31.663,128.05,128.02,0.04962025]
[1742513226113,7.8151,128.04,128.02,0.04962025]
[1742513226408,7.8151,128.04,128.02,11.47150964]
[1742513226710,7.8151,128.03,128.02,11.47150964]
[1742513230312,7.8149,128.04,128.02,19.28730964]
[1742513230508,7.8149,128.04,128.03,11.42188939]
[1742513234415,7.8151,128.03,128.02,11.47150964]
[1742513236217,7.8149,128.04,128.02,19.28730964]
[1742513237615,7.8151,128.03,128.02,11.47150964]
[1742513238116,7.8149,128.04,128.02,19.28730964]
[1742513239317,16.6773547,128.06,128.03,11.42188939]
[1742513239513,16.6773547,128.06,128.05,11.42188939]
[1742513239717,10.7389559,128.07,128.05,11.42188939]
[1742513239918,10.7389559,128.07,128.06,19.23518939]
[1742513240520,10.7389559,128.07,128.06,11.42188939]
[1742513241226,10.7389559,128.07,128.06,19.23518939]
[1742513253635,10.84788445,128.08,128.07,7.8127]
[1742513257338,10.84788445,128.08,128.07,19.23458939]
[1742513260232,16.35307032,128.09,128.08,7.8121]
[1742513260838,11.04415368,128.1,128.09,7.8115]
[1742513261038,11.04415368,128.1,128.09,19.23338939]
[1742513261734,11.04415368,128.1,128.08,11.48119657]
[1742513262239,11.04415368,128.1,128.08,19.29319657]
[1742513262435,11.04415368,128.1,128.08,11.48119657]
[1742513262738,38.50415368,128.1,128.08,11.48119657]
[1742513262937,46.31545368,128.1,128.08,11.48119657]
[1742513264438,7.8115,128.09,128.08,11.48119657]
[1742513270746,7.8115,128.09,128.08,0.05930718]
[1742513280255,54.22714307,128.1,128.05,19.23548939]
[1742513280454,56.37774307,128.1,128.05,19.23548939]
[1742513280751,11.42188939,128.09,128.04,19.23618939]
[1742513280948,27.46,128.08,128.04,19.23618939]
[1742513281346,0.05930719,128.07,128.05,0.05513625]
[1742513281547,7.8137,128.06,128.05,0.05513625]
[1742513283256,0.05930719,128.07,128.05,0.05513625]
[1742513283257,7.87240719,128.07,128.05,0.05513625]
[1742513284256,7.8133,128.06,128.05,0.05513625]
[1742513287159,7.8133,128.06,128.05,19.29092564]
[1742513287453,7.87230719,128.07,128.05,19.29092564]
[1742513288359,7.8133,128.06,128.05,11.47702564]
[1742513290865,7.87230719,128.07,128.05,19.29092564]
[1742513293049,7.8133,128.06,128.05,19.29092564]
[1742513293249,7.8133,128.06,128.05,11.47702564]
[1742513293450,27.46,128.06,128.03,257.76]
[1742513293856,7.8148,128.04,128.02,11.42188939]
[1742513294475,27.46,128.08,128.02,11.42188939]
[1742513294652,27.46,128.08,128.05,11.42188939]
[1742513294853,0.05525527,128.06,128.05,19.23548939]
[1742513295053,0.05525527,128.06,128.05,19.28604235]
[1742513312181,0.05525527,128.06,128.05,0.05055296]
[1742513313385,7.86855527,128.06,128.05,0.05055296]
[1742513316684,0.05525527,128.06,128.05,0.05055296]
[1742513316882,0.05525527,128.06,128.05,7.86445296]
[1742513317983,7.86855527,128.06,128.05,0.05055296]
[1742513318378,0.05525527,128.06,128.05,0.05055296]
[1742513320987,0.05525527,128.06,128.05,7.86445296]
[1742513321384,0.05525527,128.06,128.05,19.28634235]
[1742513322393,7.86855527,128.06,128.05,11.47244235]
[1742513322884,0.05525527,128.06,128.05,11.47244235]
[1742513324392,7.86855527,128.06,128.05,11.47244235]
[1742513325590,0.05525527,128.06,128.05,11.47244235]
[1742513327086,7.86855527,128.06,128.05,11.47244235]
[1742513329805,0.05525527,128.06,128.05,19.28634235]
[1742513331001,7.86855527,128.06,128.05,11.47244235]
[1742513331803,0.05525527,128.06,128.05,11.47244235]
[1742513332399,27.51525527,128.06,128.01,269.22188939]
[1742513332699,27.51525527,128.06,128.01,257.8]
[1742513333005,7.8158,128.02,128.01,257.8]
[1742513334501,7.8158,128.02,128.01,269.22188939]
[1742513334704,7.86641716,128.03,128.01,269.22188939]
[1742513334895,0.05091716,128.03,128.02,11.42188939]
[1742513335407,7.86601716,128.03,128.02,11.42188939]
[1742513336103,7.86601716,128.03,128.01,277.03798939]
[1742513336602,7.8158,128.02,128.01,269.22188939]
[1742513338205,7.86641716,128.03,128.01,277.03828939]
[1742513339116,7.8158,128.02,128.01,269.22188939]
[1742513339608,0.05091716,128.03,128.01,269.22188939]
[1742513340511,7.8158,128.02,128.01,269.22188939]
[1742513341609,0.05091716,128.03,128.0,0.05927864]
[1742513341610,7.8164,128.01,128.0,0.05927864]
[1742513342297,7.8182,127.98,127.96,269.26188939]
[1742513343110,7.8182,127.98,127.96,277.08098939]
[1742513343507,7.87600622,127.98,127.96,277.13871646]
[1742513343708,0.05780622,127.98,127.97,19.24068939]
[1742513349616,16.93117532,128.05,127.97,11.42188939]
[1742513349810,27.46,128.04,128.01,11.42188939]
[1742513350213,27.46,128.04,128.02,7.8157]
[1742513350414,27.46,128.04,128.01,11.42188939]
[1742513350912,27.51393099,128.04,128.03,7.8151]
[1742513354422,0.05393099,128.04,128.03,7.8151]
[1742513357829,0.05393099,128.04,128.03,19.23698939]
[1742513370931,0.05393099,128.04,128.03,7.8151]
[1742513375633,0.05393099,128.04,128.03,19.23698939]
[1742513382339,38.91582038,128.04,127.94,257.84]
[1742513382543,11.42188939,128.01,127.97,11.42188939]
[1742513382741,7.8172,128.0,127.97,19.24028939]
[1742513383633,7.8172,128.0,127.97,19.29213436]
[1742513383634,7.8177,127.99,127.97,19.29213436]
[1742513385347,7.87025159,128.0,127.97,19.29213436]
[1742513385743,7.87025159,128.0,127.97,7.87024497]
[1742513386750,7.8177,127.99,127.97,7.87024497]
[1742513388845,7.8177,127.99,127.97,0.05184497]
[1742513389949,7.8177,127.99,127.97,7.87064497]
[1742513390254,7.87025159,128.0,127.97,7.87064497]
[1742513392452,7.818,127.99,127.97,0.05184497]
[1742513392753,11.42188939,127.99,127.97,0.05184497]
[1742513394055,27.49295159,128.0,127.97,7.87064497]
[1742513394556,35.31025159,128.0,127.97,7.87064497]
[1742513395757,35.31025159,128.0,127.98,7.8181]
[1742513396557,27.49295159,128.0,127.98,7.8181]
[1742513397558,35.30995159,128.0,127.98,7.8181]
[1742513399775,46.73184098,128.0,127.98,7.8181]
[1742513400077,7.8176,127.99,127.97,7.87044497]
[1742513400271,11.42188939,127.99,127.97,0.05184497]
[1742513400478,13.48598939,127.99,127.97,0.05184497]
[1742513400870,7.8182,127.98,127.97,0.05184497]
[1742513401070,38.88188939,127.98,127.94,257.84]
[1742513401870,11.42188939,127.97,127.94,257.84]
[1742513402181,38.88188939,127.96,127.92,11.42188939]
[1742513402365,38.88188939,127.96,127.94,0.05081988]
[1742513402567,38.88188939,127.96,127.91,11.42188939]
[1742513402879,0.05110744,127.95,127.92,0.05685124]
[1742513403277,0.05110744,127.95,127.94,7.8206]
[1742513405180,11.47299683,127.95,127.92,0.05685124]
[1742513405484,38.88188939,127.94,127.92,0.05685124]
[1742513406479,38.88188939,127.94,127.92,7.87845124]
[1742513406682,11.42188939,127.93,127.88,11.42188939]
[1742513406991,19.24438939,127.91,127.88,7.8239]
[1742513407178,38.88188939,127.9,127.86,257.94]
[1742513407488,7.8237,127.89,127.87,7.8246]
[1742513407686,27.46,127.88,127.87,7.8246]
[1742513407891,27.46,127.88,127.87,7.87597764]
[1742513409381,0.05125654,127.89,127.88,7.8243]
[1742513409584,0.05125654,127.89,127.88,19.24618939]
[1742513412176,0.05125654,127.89,127.88,7.8243]
[1742513414290,0.05125654,127.89,127.87,7.87597764]
[1742513414691,0.05125654,127.89,127.87,0.05137764]
[1742513414894,0.05125654,127.89,127.88,7.8243]
[1742513418795,0.05125654,127.89,127.87,7.87597764]
[1742513419694,7.87495654,127.89,127.87,7.87597764]
[1742513419895,7.87495654,127.89,127.87,0.05137764]
[1742513420101,0.05125654,127.89,127.87,0.05137764]
[1742513421696,0.05125654,127.89,127.88,7.8243]
[1742513421996,7.87495654,127.89,127.87,7.87597764]
[1742513424900,7.87495654,127.89,127.87,0.05137764]
[1742513425192,35.2843,127.88,127.87,0.05137764]
[1742513429006,27.46,127.88,127.87,0.05137764]
[1742513429802,27.46,127.88,127.87,7.87627764]
[1742513433307,0.05125654,127.89,127.88,7.8243]
[1742513434101,0.05125654,127.89,127.87,7.87597764]
[1742513434298,7.87505654,127.89,127.87,7.87597764]
[1742513434498,0.05125654,127.89,127.87,7.87597764]
[1742513434907,0.05125654,127.89,127.88,7.8243]
[1742513440810,7.87495654,127.89,127.87,7.87597764]
[1742513441211,0.05125654,127.89,127.87,0.05137764]
[1742513442512,0.05125654,127.89,127.88,7.8243]
[1742513443502,7.87495654,127.89,127.88,7.8243]
[1742513443703,0.05125654,127.89,127.88,7.8243]
[1742513444914,0.05125654,127.89,127.87,7.87597764]
[1742513445314,7.87525654,127.89,127.87,0.05137764]
[1742513445513,0.05125654,127.89,127.87,0.05137764]
[1742513445914,7.8243,127.88,127.87,0.05137764]
[1742513450325,0.05125654,127.89,127.87,0.05137764]
[1742513450924,0.05125654,127.89,127.88,19.24618939]
[1742513454030,0.05125654,127.89,127.88,46.70618939]
[1742513454620,27.46,127.93,127.91,7.822]
[1742513455029,35.2814,127.93,127.91,7.822]
[1742513455335,35.2814,127.93,127.9,7.8227]
[1742513455634,35.33766653,127.93,127.9,7.87814615]
[1742513456633,35.33766653,127.93,127.91,7.8224]
[1742513460739,27.51626653,127.93,127.91,7.8224]
[1742513461341,27.51626653,127.93,127.92,7.8219]
[1742513461540,0.05626653,127.93,127.92,7.8219]
[1742513464840,0.05626653,127.93,127.92,19.24378939]
[1742513468345,7.8184,127.98,127.96,7.8193]
[1742513468547,35.2784,127.98,127.96,7.8193]
[1742513469546,35.32817616,127.98,127.96,7.87491948]
[1742513469745,35.32817616,127.98,127.96,0.05561948]
[1742513471751,35.32817616,127.98,127.96,7.87491948]
[1742513472842,35.32817616,127.98,127.96,0.05561948]
[1742513479259,35.32817616,127.98,127.96,7.87501948]
[1742513479447,0.04977616,127.98,127.96,11.47750887]
[1742513479850,0.04977616,127.98,127.96,7.87471948]
[1742513480652,0.04977616,127.98,127.97,7.8188]
[1742513482262,0.04977616,127.98,127.97,19.24068939]
[1742513489367,7.816,128.02,128.0,7.8166]
[1742513489958,35.2555,128.03,128.0,7.8166]
[1742513490567,35.31056224,128.03,128.0,7.87510337]
[1742513492660,7.87056224,128.03,128.0,7.87510337]
[1742513492968,7.87056224,128.03,128.0,0.05850337]
[1742513492969,7.8164,128.01,128.0,0.05850337]
[1742513494867,11.42188939,128.01,127.95,257.98]
[1742513495064,11.42188939,127.97,127.95,257.98]
[1742513495258,38.86188939,127.97,127.95,257.98]
[1742513495461,7.8194,127.96,127.95,257.98]
[1742513497181,0.05978383,127.97,127.95,277.22188939]
[1742513497468,0.05978383,127.97,127.95,269.40188939]
[1742513497665,0.05978383,127.97,127.96,7.8194]
[1742513500372,0.05978383,127.97,127.96,19.24128939]
[1742513514593,27.44,128.01,127.96,11.42188939]
[1742513515691,0.0571652,128.0,127.97,0.05333019]
[1742513515893,0.0571652,128.0,127.99,7.8172]
[1742513516494,7.8741652,128.0,127.98,7.8179]
[1742513516695,0.0571652,128.0,127.97,0.05333019]
[1742513517294,7.8178,127.99,127.97,7.87183019]
[1742513518384,7.8744652,128.0,127.98,7.8182]
[1742513519196,7.8176,127.99,127.97,7.87183019]
[1742513520396,7.8744652,128.0,127.97,7.87183019]
[1742513520992,7.8744652,128.0,127.98,7.8181]
[1742513522693,0.0571652,128.0,127.98,7.8181]
[1742513523495,0.0571652,128.0,127.99,7.8176]
[1742513524189,7.8741652,128.0,127.98,7.8179]
[1742513524896,0.0571652,128.0,127.99,7.8176]
[1742513525198,6.52e-05,128.0,127.99,19.23948939]
[1742513525396,10.86053471,128.04,127.99,304.62188939]
[1742513525586,130.32641655,128.06,128.03,11.42188939]
[1742513525787,130.32641655,128.06,128.04,27.44]
[1742513526390,130.32641655,128.06,128.04,35.2545]
[1742513526591,130.38032676,128.06,128.04,35.2545]
[1742513526788,130.38032676,128.06,128.04,27.44]
[1742513526988,87.10163829,128.06,128.05,19.23578939]
[1742513527183,75.34343829,128.06,128.05,19.23578939]
[1742513527498,51.24943829,128.06,128.05,19.23578939]
[1742513530690,0.05015503,128.07,128.06,7.8133]
[1742513531000,0.05015503,128.07,128.06,46.65518939]
[1742513535800,0.05015503,128.07,128.03,11.47248641]
[1742513536405,0.05015503,128.07,128.04,7.8144]
[1742513536703,0.05015503,128.07,128.03,11.47248641]
[1742513536902,0.05015503,128.07,128.05,11.42188939]
[1742513537400,0.05015503,128.07,128.05,19.23548939]
[1742513538095,0.05015503,128.07,128.03,27.42]
[1742513538295,0.05015503,128.07,128.05,11.42188939]
[1742513539205,0.05015503,128.07,128.05,11.47218112]
[1742513539902,7.86295503,128.07,128.05,0.05029173]
[1742513541403,0.05015503,128.07,128.05,0.05029173]
[1742513541607,0.05015503,128.07,128.06,7.8133]
[1742513541797,0.05015503,128.07,128.05,11.47218112]
[1742513542692,0.05015503,128.07,128.06,7.8133]
[1742513543300,0.05015503,128.07,128.06,19.23518939]
[1742513543795,0.05015503,128.07,128.05,38.89218112]
[1742513544196,0.05015503,128.07,128.05,11.47218112]
[1742513544507,7.86315503,128.07,128.05,11.47218112]
[1742513545797,7.86315503,128.07,128.05,19.28598112]
[1742513545998,27.42,128.06,128.02,11.42188939]
[1742513546193,38.84188939,128.06,127.99,257.94]
[1742513546400,7.8157,128.03,128.0,11.42188939]
[1742513547098,35.2349,128.04,128.01,7.8163]
[1742513547297,0.05842056,128.03,128.01,7.8163]
[1742513547498,0.05842056,128.03,128.02,11.42188939]
[1742513548607,0.05842056,128.03,128.02,19.23768939]
[1742513550802,11.04415368,128.1,128.07,7.8122]
[1742513551002,11.04415368,128.1,128.07,11.42188939]
[1742513551207,38.46415368,128.1,128.08,11.42188939]
[1742513551508,11.04415368,128.1,128.09,11.42188939]
[1742513552110,11.04415368,128.1,128.08,11.48056445]
[1742513552905,11.04415368,128.1,128.08,19.29236445]
[1742513553104,11.04415368,128.1,128.08,0.05867506]
[1742513553902,18.85505368,128.1,128.08,0.05867506]
[1742513554912,11.04415368,128.1,128.08,11.48056445]
[1742513555503,11.04415368,128.1,128.09,7.8115]
[1742513555702,11.04415368,128.1,128.08,11.48056445]
[1742513556109,11.04415368,128.1,128.09,7.8115]
[1742513559213,11.04415368,128.1,128.09,19.23338939]
[1742513560311,11.04415368,128.1,128.09,7.8115]
[1742513560516,11.04415368,128.1,128.08,19.29236445]
[1742513562919,18.85505368,128.1,128.08,19.29236445]
[1742513563614,11.04415368,128.1,128.08,19.29236445]
[1742513564320,18.85505368,128.1,128.08,19.29236445]
[1742513565129,27.5,128.09,128.03,296.14303863]
[1742513565322,27.5,128.09,128.05,11.42188939]
[1742513565526,7.8123,128.08,128.05,19.23528939]
[1742513566314,7.87141158,128.08,128.05,19.2932111]
[1742513567415,7.8128,128.07,128.05,19.2932111]
[1742513567823,7.8133,128.06,128.05,0.05792171]
[1742513569722,7.813,128.07,128.05,7.87182171]
[1742513569916,7.813,128.07,128.05,19.2937111]
[1742513570931,7.8133,128.06,128.05,11.4798111]
[1742513571226,0.05911158,128.08,128.05,11.4798111]
[1742513571436,7.813,128.07,128.05,19.2937111]
[1742513571635,0.05911158,128.08,128.05,11.4798111]
[1742513571933,27.48,128.07,128.05,11.4798111]
[1742513572133,7.8133,128.06,128.05,11.4798111]
[1742513572320,27.48,128.07,128.05,11.4798111]
[1742513573033,27.48,128.07,128.06,7.8133]
[1742513573534,0.05911158,128.08,128.06,7.8133]
[1742513573924,0.05911158,128.08,128.07,7.8127]
[1742513574630,0.05911158,128.08,128.07,19.23458939]
[1742513576332,0.05911158,128.08,128.05,11.4798111]
[1742513577635,0.05911158,128.08,128.06,7.8133]
[1742513577836,0.05911158,128.08,128.05,11.4798111]
[1742513579549,0.05911158,128.08,128.07,7.8127]
[1742513580338,7.87131158,128.08,128.06,7.813]
[1742513580838,0.05911158,128.08,128.06,7.813]
[1742513583436,0.05911158,128.08,128.07,7.8127]
[1742513583830,7.87121158,128.08,128.05,11.4798111]
[1742513584032,0.05911158,128.08,128.05,11.4798111]
[1742513584430,7.8127,128.07,128.05,11.4798111]
[1742513584635,7.8127,128.07,128.05,19.2933111]
[1742513584831,27.49911158,128.08,128.05,11.4798111]
[1742513584832,7.8133,128.06,128.05,11.4798111]
[1742513585028,35.2533,128.06,128.05,0.05792171]
[1742513593442,7.8156,128.03,128.0,11.42188939]
[1742513593641,27.42,128.04,128.0,11.42188939]
[1742513593937,27.44,128.03,127.99,7.8173]
[1742513594143,7.8168,128.01,127.99,7.8173]
[1742513594342,7.8168,128.01,127.99,19.23918939]
[1742513594643,7.87145978,128.01,127.99,19.29255182]
[1742513595735,0.05465978,128.01,127.99,19.29255182]
[1742513596046,0.05465978,128.01,128.0,19.23888939]
[1742513596637,11.42188939,128.08,128.03,7.8147]
[1742513596834,27.42,128.07,128.03,7.8147]
[1742513597136,7.8136,128.06,128.03,7.8147]
[1742513597846,7.86359832,128.06,128.03,7.87449809]
[1742513601453,35.254,128.05,128.03,7.87449809]
[1742513602048,27.44,128.05,128.04,7.8145]
[1742513602254,0.04999832,128.06,128.04,11.42188939]
[1742513602847,0.04999832,128.06,128.05,7.8139]
[1742513604744,11.04415368,128.1,128.05,7.8139]
[1742513604745,11.04415368,128.1,128.09,7.8115]
[1742513605654,11.04415368,128.1,128.08,19.23368939]
[1742513605850,11.04415368,128.1,128.08,11.48032701]
[1742513606058,38.50415368,128.1,128.08,0.05843762]
[1742513606249,46.31535368,128.1,128.08,0.05843762]
[1742513607364,11.04415368,128.1,128.09,19.23338939]
[1742513607657,11.04415368,128.1,128.09,7.8115]
[1742513609950,11.04415368,128.1,128.08,0.05843762]
[1742513610153,18.85535368,128.1,128.08,0.05843762]
[1742513610358,11.04415368,128.1,128.08,0.05843762]
[1742513610560,11.04415368,128.1,128.08,7.87003762]
[1742513610860,11.04415368,128.1,128.08,0.05843762]
[1742513611160,11.04415368,128.1,128.09,7.8115]
[1742513611752,11.04415368,128.1,128.09,19.23338939]
[1742513613658,12.59185363,128.12,128.09,269.18188939]